Cogmind - Beta 16 --- EXPLORER MODE // 2025.12.24 @ 11:46:06 Player: K.K.Y. Result: Destroyed by XB-SLK(R) with Subdweller Machine Gun Performance ------------- Evolutions (0) 0 Regions Visited (3) 600 Robots Destroyed (39) 195 Value Destroyed (1026) 1026 Prototype IDs (18) 360 Alien Tech Used (0) 0 Bonus (0) 0 TOTAL SCORE: 2181 Bonus ------- None Cogmind --------- Core Integrity 0/250 Matter 245/300 Energy 125/125 System Corruption 0% Temperature Cool (0) Movement Walking (130) Location -10/Subcaves Parts ------- > --- POWER (1) -------- Light Ion Engine > --- PROPULSION (2) --- Cargo Legs > --- UTILITY (3+2) ---- Medium Storage Unit Structural Scanner > --- WEAPON (2) ------- Makeshift Shrapnel Gun Slug Cannon > --- INVENTORY (10) --- Flight Unit Flight Unit Flight Unit Medium Storage Unit High-capacity Storage Unit ECM Suite Makeshift Laser Slug Cannon Mining Laser Multitool Peak State ------------ > --- POWER ------------ Light Ion Engine > --- PROPULSION ------- Cargo Legs > --- UTILITY ---------- Medium Storage Unit Structural Scanner > --- WEAPON ----------- Makeshift Shrapnel Gun Slug Cannon > --- INVENTORY -------- Flight Unit Flight Unit Flight Unit Flight Unit Flight Unit Medium Storage Unit High-capacity Storage Unit ECM Suite Mining Laser Multitool [Rating: 28] Favorites ----------- Power Ion Engine Engine Ion Engine Propulsion Light Treads Treads Light Treads Leg Cargo Legs Flight Unit Flight Unit Utility Structural Scanner Device Structural Scanner Storage Medium Storage Unit Weapon Beam Cannon Energy Gun Small Laser Energy Cannon Beam Cannon Ballistic Gun Makeshift Shrapnel Gun Ballistic Cannon Slug Cannon Special Weapon Mining Laser Build | -11 -10 -10 -10 ------- Run | Yrd Mat Min Sub Slots Evolved 1 | . 1 . . Power . | . . . . Propulsion . | . . . . Utility 1 | . 1 . . Weapon . | . . . . Parts Attached 30 | 4 17 1 8 Power 3 | 1 1 . 1 Engine 3 | 1 1 . 1 Core . | . . . . Reactor . | . . . . Propulsion 10 | 2 7 . 1 Treads 5 | 2 3 . . Leg 1 | . . . 1 Wheel . | . . . . Hover . | . . . . Flight 4 | . 4 . . Utility 5 | . 3 1 1 Device 4 | . 2 1 1 Storage 1 | . 1 . . Processor . | . . . . Hackware . | . . . . Protection . | . . . . Artifact . | . . . . Weapon 12 | 1 6 . 5 Energy Gun 5 | 1 3 . 1 Energy Cannon 3 | . 2 . 1 Ballistic Gun 1 | . . . 1 Ballistic Cannon 2 | . . . 2 Launcher . | . . . . Special Weapon 1 | . 1 . . Impact Weapon . | . . . . Slashing Weapon . | . . . . Piercing Weapon . | . . . . Special Melee Weapon . | . . . . Unidentified Prototypes . | . . . . Parts Lost 4 | . 1 . 3 Power 1 | . . . 1 Propulsion 1 | . 1 . . Utility 1 | . . . 1 Weapon 1 | . . . 1 Highest Loss Streak 1 | . 1 . 1 To Critical Strikes . | . . . . Average Backups 9 | . 8 10 10 Power . | . . . . Propulsion 5 | . 5 6 5 Utility 2 | . 1 2 3 Weapon 1 | . 1 1 1 Tool/Special . | . . . . Unused Backups 14 | . 3 1 10 Power . | . . . . Propulsion 8 | . 2 . 6 Utility 3 | . 1 . 2 Weapon 2 | . . 1 1 Tool/Special 1 | . . . 1 Average Slot Usage (%) 82 | . 91 88 74 Engine 10 | . 12 12 8 Treads 9 | . 12 13 6 Leg 1 | . . . 4 Flight 2 | . 10 . . Device 21 | . 22 25 20 Storage 10 | . 9 12 11 Energy Gun 7 | . 22 . 3 Energy Cannon 13 | . . 25 14 Ballistic Gun 1 | . . . 2 Peak Build Rating 28 | 4 9 11 28 Average Rating 12 | 3 7 9 17 On Entrance 5 | . 4 9 10 Avg Prop Armor Cover (%) 15 | . 15 . . Naked Turns . | . . . . Heaviest Build 28 | 6 24 24 28 Greatest Support 55 | 40 40 40 55 Greatest Overweight (x) 6 | . 6 1 1 Average Overweight (x) . | . . . . Largest Inventory Capacity 10 | 5 10 10 10 Average Capacity 9 | 5 8 10 10 Most Carried 10 | 4 10 10 10 Average Carried 9 | . 8 9 9 Final Capacity 10 | 5 10 10 10 Final Carried 10 | 1 10 10 10 Class Distribution -------------------- 100% | Hacker-Mutant Dominant Class ---------------- Hacker-Mutant | -10/Materials Hacker-Mutant | -10/Mines Hacker-Mutant | -10/Subcaves Resources | -11 -10 -10 -10 ----------- Run | Yrd Mat Min Sub Matter Collected 636 | 240 165 10 221 Remotely . | . . . . Salvage Created 1289 | 151 305 87 746 Parts 85 | 9 25 4 47 Haulers Intercepted 2 | . 2 . . Recyclers Shooed 1 | 1 . . . Parts Field Recycled . | . . . . Retrieved Matter . | . . . . Parts Self-Destructed . | . . . . Prevented . | . . . . Parts Restored . | . . . . Kills | -11 -10 -10 -10 ------- Run | Yrd Mat Min Sub Combat Hostiles Destroyed 28 | . 6 2 20 Guns 11 | . 6 . 5 Cannons 16 | . . 2 14 Classes Destroyed 10 | 2 4 . 4 Tunneler 3 | 3 . . . Hauler 2 | . 2 . . Recycler 1 | 1 . . . Turret 2 | . . . 2 Watcher 3 | . 3 . . Swarmer 8 | . 4 . 4 Grunt 4 | . 2 2 . Sentry 1 | . . . 1 Artisan 1 | . . . 1 Subdweller 15 | . . . 15 Best Kill Streak 4 | 2 2 2 4 Combat Bots Only 4 | . 2 2 4 Max Kills in Single Turn 2 | 1 2 1 1 Gunslinging . | . . . . Exploded . | . . . . Melee . | . . . . Uniques/NPCs Destroyed . | . . . . Combat | -11 -10 -10 -10 -------- Run | Yrd Mat Min Sub Hostile Shots Fired 229 | . 15 8 206 Missed 93 | . 4 . 89 Hits 136 | . 11 8 117 Projectile 136 | . 11 8 117 Critical Strikes 3 | . . 1 2 Damage Taken 972 | . 91 67 814 Core 265 | . 32 11 222 Absorbed by Shields . | . . . . Ignored by Resistances 600 | . 56 41 503 Core Remaining (%) 100 | 100 . . . Volleys Fired 135 | 13 36 5 81 Largest 2 | 1 2 2 2 Hottest 140 | 40 80 120 140 Shots Fired 227 | 13 55 10 149 Gun 108 | 13 55 . 40 Cannon 119 | . . 10 109 Launcher . | . . . . Special . | . . . . Kinetic 37 | . . . 37 Thermal 171 | 13 55 10 93 Explosive . | . . . . Electromagnetic 19 | . . . 19 Robot Hit Streak 29 | 9 16 8 29 Robot Miss Streak 3 | 1 2 . 3 Penetration Max . | . . . . Secondary Targets . | . . . . Shots Hit Robots 138 | 12 42 7 77 Core Hits 66 | 5 19 3 39 Critical Kills 2 | . . . 2 Critical Parts Destroyed . | . . . . Critical Strikes 4 | . . . 4 Meltdown 1 | . . . 1 Destroy 3 | . . . 3 Melee Attacks . | . . . . Impact . | . . . . Slashing . | . . . . Piercing . | . . . . Sneak Attacks . | . . . . Combat Hostiles . | . . . . Follow-up Attacks . | . . . . Damage Inflicted 2509 | 138 484 122 1765 Guns 1069 | 138 484 . 447 Cannons 1440 | . . 122 1318 Explosions . | . . . . Melee . | . . . . Ramming . | . . . . Kinetic 480 | . . . 480 Thermal 1854 | 138 484 122 1110 Explosive . | . . . . Electromagnetic 175 | . . . 175 Impact . | . . . . Slashing . | . . . . Piercing . | . . . . Highest Corruption . | . . . . Average Corruption . | . . . . Corruption Purged . | . . . . Corruption Blocked . | . . . . Overload Shots . | . . . . Overflow Damage 9 | . . . 9 Projectiles 9 | . . . 9 Explosions . | . . . . Melee . | . . . . Knockbacks 1 | . . . 1 Impact . | . . . . Kinetic 1 | . . . 1 Secondary . | . . . . Self-Inflicted Damage . | . . . . Shots . | . . . . Rammed . | . . . . Targets Rammed . | . . . . Kicked . | . . . . Crushed . | . . . . Highest Temperature 300 | 20 130 300 7 Average Temperature 56 | 20 47 148 4 Received Heat Transfer 579 | . 69 75 435 Effects 3 | . . 3 . Interference 2 | . . 2 . Short Circuit 1 | . . 1 . Siege Activations . | . . . . Martial Activations . | . . . . Shielding Activations . | . . . . Robots Disrupted . | . . . . Combat Hostiles . | . . . . Robots Corrupted . | . . . . Combat Hostiles . | . . . . Parts Fried 1 | . . . 1 Impact Corruptions . | . . . . Robots Melted 1 | . . . 1 Combat Hostiles 1 | . . . 1 Parts Melted 6 | . 1 1 4 Heat Transferred 3546 | 300 1100 259 1887 Parts Sabotaged . | . . . . Parts Stolen . | . . . . Parts Stripped . | . . . . Power Chain Reactions . | . . . . Alert | -11 -10 -10 -10 ------- Run | Yrd Mat Min Sub Maximum Alert Level . | . . . . Low Security (%) 100 | 100 100 100 . Level 1 . | . . . . Level 2 . | . . . . Level 3 . | . . . . Level 4 . | . . . . Level 5 . | . . . . High Security . | . . . . Max Security . | . . . . Peak Influence 50 | 10 50 50 . Initial . | . . . . Average 2 | 1 3 1 . Influence Increases 547 | 20 199 53 275 Destroy 0b10 Robot/C 300 | . 120 40 140 Destroy 0b10 Robot/NC 45 | 20 25 . . Destroy Leader 50 | . 40 10 . Successful Hack 17 | . 14 3 . Lose Combat Pursuer 135 | . . . 135 Influence Decreases 547 | 20 199 53 275 Time Decay 522 | 20 194 53 255 Lost Part 25 | . 5 . 20 Squads Dispatched . | . . . . Investigation . | . . . . Extermination . | . . . . Reinforcement . | . . . . Assault . | . . . . Garrison . | . . . . Intercept . | . . . . Searches Triggered . | . . . . Construction Impeded . | . . . . Haulers Reinforced . | . . . . Active Scanning Responses . | . . . . Cargo Convoy Interrupts . | . . . . Stealth | -11 -10 -10 -10 --------- Run | Yrd Mat Min Sub Distress Signals . | . . . . Communications Jammed . | . . . . Distress Signals . | . . . . Times Spotted 40 | . 14 2 24 Peak Tracking Total 3 | . 2 2 3 Tactical Retreats 5 | . 1 . 4 ECM-based Alert Blocks 2 | . 2 . . Traps | -11 -10 -10 -10 ------- Run | Yrd Mat Min Sub Traps Triggered 2 | . . . 2 Indirectly . | . . . . Trap Hack Attempts . | . . . . Triggered . | . . . . Disarmed . | . . . . Reprogrammed . | . . . . Reused . | . . . . Traps Extracted . | . . . . Installed . | . . . . Triggered . | . . . . Machines | -11 -10 -10 -10 ---------- Run | Yrd Mat Min Sub Machines Disabled 1 | . . . 1 Max in Single Turn 1 | . . . 1 Machines Repaired . | . . . . Machines Dismantled . | . . . . Machines Sabotaged . | . . . . Overloaded Fab Kills . | . . . . Hacking | -11 -10 -10 -10 --------- Run | Yrd Mat Min Sub Machines Accessed 8 | . 5 1 2 Terminals 6 | . 5 1 . Fabricators . | . . . . Repair Stations . | . . . . Recycling Units . | . . . . Scanalyzers . | . . . . Garrison Access . | . . . . Total Hacks 27 | . 17 4 6 Successful 21 | . 13 2 6 Failed 6 | . 4 2 . Catastrophic . | . . . . Database Lockouts . | . . . . Manual 21 | . 17 4 . Terminals 21 | . 17 4 . Fabricators . | . . . . Repair Stations . | . . . . Recycling Units . | . . . . Scanalyzers . | . . . . Garrison Access . | . . . . Terminal Hacks 14 | . 7 1 6 Record 5 | . . . 5 Prototype ID Bank 8 | . 7 1 . Proto ID Catalog 1 | . . . 1 Fabricator Hacks . | . . . . Repair Station Hacks . | . . . . Recycling Unit Hacks . | . . . . Scanalyzer . | . . . . Garrison Access Hacks . | . . . . Unauthorized Hacks 7 | . 6 1 . Terminals 7 | . 6 1 . Assimilate 1 | . 1 . . Botnet 6 | . 5 1 . Fabricators . | . . . . Repair Stations . | . . . . Recycling Units . | . . . . Scanalyzers . | . . . . Garrison Access . | . . . . Data Cores Recovered . | . . . . Used . | . . . . Hacking Detections 6 | . 5 1 . Full Trace Events 1 | . 1 . . Feedback Events . | . . . . Feedback Blocked . | . . . . Robot Schematics Acquired . | . . . . Robots Built . | . . . . Authchips . | . . . . Time . | . . . . Total Robot Build Rating . | . . . . Part Schematics Acquired . | . . . . Parts Built . | . . . . Authchips . | . . . . Time . | . . . . Total Part Build Rating . | . . . . Part Studies Acquired . | . . . . Parts Repaired . | . . . . Time . | . . . . Parts Recycled . | . . . . Recycled Matter . | . . . . Retrieved Matter . | . . . . Retrieved Components . | . . . . Parts Scanalyzed . | . . . . Part Schematics Acquired . | . . . . Parts Damaged . | . . . . Bothacking | -11 -10 -10 -10 ------------ Run | Yrd Mat Min Sub Used RIF Installer . | . . . . Robots Hacked . | . . . . Non-combat . | . . . . Combat . | . . . . Robot Hacks Applied . | . . . . Relay Couplers Released . | . . . . Fabnet Peak Effective % . | . . . . Robots Rewired . | . . . . Allies Hacked . | . . . . Hacks Repelled . | . . . . Allies | -11 -10 -10 -10 -------- Run | Yrd Mat Min Sub Total Allies . | . . . . Largest Group . | . . . . Highest-Rated Group . | . . . . Highest-Rated Ally . | . . . . Total Orders . | . . . . Ally Attacks . | . . . . Total Damage . | . . . . Kills . | . . . . Allies Corrupted . | . . . . Allies Melted . | . . . . Intel | -11 -10 -10 -10 ------- Run | Yrd Mat Min Sub Active Infowar (turns) 5489 | . 1300 1542 2647 Structural 5489 | . 1300 1542 2647 ECM 1331 | . 1211 120 . Robot Analysis Total . | . . . . Derelict Logs Recovered 1 | . . . 1 Drone Launches . | . . . . Drone Recoveries . | . . . . Exploration | -11 -10 -10 -10 ------------- Run | Yrd Mat Min Sub Turns Passed 5680 | 94 1397 1542 2647 Spaces Moved 2854 | 61 901 640 1252 Core 51 | 34 17 . . Treads 1686 | 27 453 640 566 Legs 686 | . . . 686 Wheels . | . . . . Hover . | . . . . Flight 431 | . 431 . . Fastest Speed 37 | 50 37 160 130 Average Speed 175 | 98 135 232 179 Slowest Speed 350 | 160 350 240 240 Overloaded Moves . | . . . . Propulsion Burnouts . | . . . . Robots Hopped . | . . . . Potential Cave-ins . | . . . . Cave-ins Triggered . | . . . . Exploration Rate (%) 71 | 4 98 99 85 Regions Visited 3 Branch Regions 2 Pre-discovered Areas 2 | . . . 2 Known Exits Taken 3 | 1 1 1 . Unknown Exits Taken . | . . . . Scrap Searched 9 | . . 1 8 Spaces Dug . | . . . . Terrain Destroyed 3 | . . . 3 Melee . | . . . . Projectile 3 | . . . 3 AOE . | . . . . Terrain Rammed . | . . . . Walls Destroyed . | . . . . Machines Disabled . | . . . . Actions | -11 -10 -10 -10 --------- Run | Yrd Mat Min Sub Total 3293 | 82 1024 688 1499 Wait 225 | . 37 40 148 Move 2851 | 60 900 639 1252 Hop . | . . . . Pick Up 27 | 5 18 1 3 Fast Attach 9 | . 6 . 3 Attach 7 | 4 3 . . Detach 2 | . 2 . . Swap 14 | . 8 1 5 Drop 23 | . 14 2 7 Fire 135 | 13 36 5 81 Melee . | . . . . Ram . | . . . . Kick . | . . . . Crush . | . . . . Escape Stasis . | . . . . Rewire . | . . . . Trap . | . . . . Miscellaneous . | . . . . Route ------- -11/Scrapyard -10/Materials (discovered 4 exits: *Mat x3 / *Min) -10/Mines (discovered 4 exits: *Mat x2 / *Exi / *Sub) -10/Subcaves (discovered 4 exits: *Mat x2 / *Rec / [*Scr]) History --------- Turn | Location | Event 3 | -11/Scrapyard | Identified exit to Materials 3 | -11/Scrapyard | Discovered exit to Materials (range 16) 95 | -11/Scrapyard | Entered Materials 95 | -10/Materials | Evolved 1 slot: Utility x1 242 | -10/Materials | Identified exit to Mines 242 | -10/Materials | Discovered exit to Mines (range 7) 276 | -10/Materials | Identified exit to Materials 276 | -10/Materials | Discovered exit to Materials (range 12) 302 | -10/Materials | Build established: Hacker-Mutant 574 | -10/Materials | Discovered exit to Materials (range 16) 1164 | -10/Materials | Discovered exit to Materials (range 15) 1492 | -10/Materials | Entered Mines 1534 | -10/Mines | Met a Derelict bent on vengeance 1585 | -10/Mines | Discovered exit to Materials (range 5) 1954 | -10/Mines | Identified exit to Subcaves 1954 | -10/Mines | Discovered exit to Subcaves (range 10) 1995 | -10/Mines | Deemed a non-threat by the Exiles lab entrance 1995 | -10/Mines | Identified exit to Exiles 1995 | -10/Mines | Discovered exit to Exiles (range 5) 2432 | -10/Mines | Discovered exit to Materials (range 14) 3034 | -10/Mines | Entered Subcaves 3035 | -10/Subcaves | Approached by a straggling Scientist 3069 | -10/Subcaves | Ambushed by Subdwellers from Twisted Machinery 3266 | -10/Subcaves | Shifting Twisted Machinery released Battle Rifle 3267 | -10/Subcaves | Shifting Twisted Machinery released Sub. Beam Cannon 3399 | -10/Subcaves | Visited Clippyterm 3406 | -10/Subcaves | Identified exit to Recycling 3406 | -10/Subcaves | Learned location of Extension (-4) 3447 | -10/Subcaves | Identified exit to Materials 3447 | -10/Subcaves | Discovered exit to Materials (range 3) 3633 | -10/Subcaves | Scientist uncovered a shortcut to Scraptown 3844 | -10/Subcaves | Learned location of Storage (-8) 3904 | -10/Subcaves | Disturbed a concealed Subdweller 4513 | -10/Subcaves | Visited 4L-MR0's lab 4562 | -10/Subcaves | Found Cargo Legs 4564 | -10/Subcaves | Attached Cargo Legs, gained temporary slots: Utility x2 4835 | -10/Subcaves | Core integrity fell below 50% 4947 | -10/Subcaves | Core integrity fell below 20% 5215 | -10/Subcaves | A swath of the cavern ceiling suddenly collapsed 5361 | -10/Subcaves | Disturbed a concealed Subdweller 5470 | -10/Subcaves | Shifting Twisted Machinery released Slug Cannon 5472 | -10/Subcaves | Shifting Twisted Machinery released Flamer 5523 | -10/Subcaves | Ambushed by Subdweller buried in earth 5537 | -10/Subcaves | Discovered exit to Materials (range 15) 5681 | -10/Subcaves | Destroyed by XB-SLK(R) with Subdweller Machine Gun Last Messages --------------- 05529_ Acquired 5 matter. 05537_ EXIT=FOUND: MATERIALS 05541_ Acquired 25 matter. 05543_ Acquired 8 matter. 05544_ Acquired 3 matter. 05564_ Searching scrap... 05564_ Found Sub. Shrapnel Launcher. 05564_ Found 39 Matter. 05565_ Acquired 1 matter. 05568_ Searching scrap... 05568_ Found Battle Rifle. 05568_ Found Sub. Laser. 05568_ Found 65 Matter. 05569_ Searching scrap... 05569_ Found Battle Rifle. 05569_ Found Sub. Beam Cannon. 05569_ Found 62 Matter. 05620_ O3-VA2(R) destroyed. 05681_ XB-SLK(R) angrily emerges from the Twisted Machinery. Map ----- +----------------------------------------------------+ | | | | | | | | | | | | | ?????????????????????????????????????????????????? | | ?????????????????????????????????????????????????? | | ?????????????????????????????????????????????????? | | ?????????????????????????????????????????????????? | | ?????????????????????????????????????????????????? | | ?????????????????????????????????????????????????? | | ?????????????????????????????????????????????????? | | ?????????????????????????????????????????????????? | | ????????????????????#########????????????????????? | | ????????????????????#########????????????????????? | | ????????????????????## #%[##????????????????????? | | ????????????????????## [][%##????????????????????? | | ????????????????????####R"###????????????????????? | | ????????????????????###%&#######?????????????????? | | ????????????????????####]# #####################?? | | ????????????????????## < < ## #################### | | ???????????????????### ### ### "####%#### | | ?????????????######### < ! * &! # | | ????????????######### ! ## ##[## | | ????????????### # # @## # ### ### #""##### | | ????????????## # ########### "###### | | ????????????## # ### ########### ##### | | ????????????## # ##### ######### ###### | | ????????????## ###### #########" "#### | | ????????????### # ######## ## ## ##" & | | ????????????## ## ####?## ##### | | ????????????## ##???### ""# ##"## ###### | | ????????????## ###??######################??# | | ????????????### ####??####################???? | | ????????????### ###?????????????????????????? | | ????????????## ##?????????????????????????? | | ????????????## ##?????????????????????????? | | ????????????## #######?????????????????????????? | | ????????????## ########?????????????????????????? | | ????????????## ###???????????????????????????????? | | ????????????#####????????????????????????????????? | | ????????????####?????????????????????????????????? | | ?????????????????????????????????????????????????? | | ?????????????????????????????????????????????????? | | ?????????????????????????????????????????????????? | | ?????????????????????????????????????????????????? | | ?????????????????????????????????????????????????? | | ?????????????????????????????????????????????????? | | ?????????????????????????????????????????????????? | +----------------------------------------------------+ Best States ------------- Heat Dissipation 39 Energy Generation 10 Energy Capacity 250 Matter Stores 300 Matter Capacity 300 Sight Range 16 Terrain Scan Density 10 ECM Strength 1 Resistance: KI 35 Resistance: TH 35 Resistance: EX 35 Resistance: EM 35 Resistance: I 35 Resistance: S 35 Resistance: P 35 Evasion (%) 62 Recoil Reduction 2 Offensive Hacking 20 Item Schematics ----------------- None Robot Schematics ------------------ None Fabricated ------------ Nothing Repaired ---------- Nothing Studied --------- None Alien Tech Used ----------------- None Achievements -------------- None Challenges ------------ None Game ------ Seed VortexOvertunedDrivehammer Manual? 0 Play Time 00:21:35 Cumulative 223.4 hours Start 2025.12.24 @ 11:27:23 End 2025.12.24 @ 11:46:06 Sessions 1 Manual Loads 0 Difficulty Explorer Special Mode None Game No. 339 Rogue 0 Adventurer 0 Explorer 339 Win Type - Total 0 Types 0/0/0/0/0/0/0/0/0/0 Lore% 71 Gallery% 68 Achievement% 53 Wizard Run 0 Options --------- Layout 1 ASCII 0 Keyboard 0 Movement Mouse Keybinds 0 Fullscreen 1 Font 24/Smallcaps Map View 50x35 Zoom Use 0% Tactical HUD 1 Map Filters NONE Filters NONE Steam 1 RUN: c9d922e9-8e64-481e-a265-db097e3d4139